bitfinex-derivatives/quotes_ETHF0:USTF0_20250116
["timestamp","ask_amount","ask_price","bid_price","bid_amount"]
[1737048430332,3.10096,3344.1,3344.0,0.59817]
[1737048431632,0.5982,3344.0,3343.9,0.59818]
[1737048431837,0.59821,3343.9,3343.8,0.5982]
[1737048432434,2.5028,3344.1,3343.6,1.238]
[1737048432634,0.59823,3343.8,3343.7,0.59821]
[1737048434345,2.33064612,3343.9,3343.7,1.238]
[1737048434633,2.33064612,3343.9,3343.8,0.59821]
[1737048435536,2.33064612,3344.0,3343.9,0.59819]
[1737048436037,1.65741328,3344.0,3343.9,1.81374929]
[1737048437037,1.65741328,3344.0,3343.9,2.3745925]
[1737048437341,0.72249921,3344.0,3343.9,2.3745925]
[1737048438138,3.2078,3344.6,3344.5,0.59808]
[1737048438337,3.80587,3344.6,3344.5,2.59575283]
[1737048438641,3.80587,3344.6,3344.5,2.59547473]
[1737048438843,3.2078,3344.6,3344.5,3.06299753]
[1737048439043,6.72538994,3344.6,3344.5,3.06299753]
[1737048440243,3.2078,3344.6,3344.5,3.06299753]
[1737048441739,6.00748994,3344.7,3344.6,0.59807]
[1737048441740,3.51758994,3344.7,3344.6,0.59807]
[1737048441946,3.51758994,3344.7,3344.6,1.35746473]
[1737048442146,3.51758994,3344.7,3344.6,43.35326473]
[1737048442445,3.51758994,3344.7,3344.6,43.82078753]
[1737048442648,3.51758994,3344.9,3344.8,0.59803]
[1737048442844,3.51758994,3344.9,3344.8,3.63677587]
[1737048443047,3.51758994,3344.9,3344.8,4.10429867]
[1737048444046,3.6863,3345.3,3344.8,3.50626867]
[1737048444247,3.6863,3345.3,3345.2,0.59796]
[1737048444448,3.6863,3345.3,3345.2,42.15735473]
[1737048445149,3.6863,3345.3,3345.2,1.35735473]
[1737048445345,3.6863,3345.3,3345.2,1.82487753]
[1737048446350,1.2233,3345.3,3345.2,1.82487753]
[1737048446553,3.51758994,3345.5,3345.4,0.59792]
[1737048446743,3.51758994,3345.5,3345.4,4.87466587]
[1737048446947,3.51758994,3345.5,3345.4,5.34218867]
[1737048447344,3.51758994,3345.7,3345.6,0.59789]
[1737048447544,3.51758994,3345.7,3345.6,1.35728473]
[1737048447855,3.51758994,3345.7,3345.6,42.62480753]
[1737048448353,3.51758994,3345.7,3345.6,45.83260753]
[1737048448744,4.67212451,3345.9,3345.6,45.83260753]
[1737048448951,1.2126,3346.1,3346.0,0.59781]
[1737048449147,1.2126,3346.1,3346.0,1.35720473]
[1737048449349,1.2126,3346.1,3346.0,1.82472753]
[1737048449852,3.51758994,3346.3,3346.0,1.82472753]
[1737048449853,3.51758994,3346.3,3346.2,0.59778]
[1737048450046,5.95648994,3346.3,3346.2,2.59417473]
[1737048450245,2.4389,3346.3,3346.2,2.59417473]
[1737048450441,2.4389,3346.3,3346.2,3.06169753]
[1737048450646,3.2078,3346.4,3346.3,0.59776]
[1737048450849,3.2078,3346.4,3346.3,1.35715473]
[1737048451151,3.2078,3346.4,3346.3,1.82467753]
[1737048452048,3.2078,3346.4,3346.3,2.46391753]
[1737048452256,3.80554,3346.4,3346.3,2.46391753]
[1737048453153,3.80554,3346.4,3346.3,1.22691753]
[1737048453457,3.80554,3346.4,3346.3,1.99449922]
[1737048455153,3.80554,3346.4,3346.3,2.59225922]
[1737048455757,3.2078,3346.4,3346.3,2.59225922]
[1737048455957,3.2078,3346.4,3346.3,3.05591261]
[1737048456450,3.2078,3346.4,3346.3,2.3022828]
[1737048457860,3.21045497,3346.4,3346.3,2.3022828]
[1737048458358,0.00265497,3346.4,3346.3,2.3022828]
[1737048458851,0.60039497,3346.4,3346.3,2.3022828]
[1737048459755,0.60039497,3346.4,3346.3,1.83476]
[1737048460052,0.00265497,3346.4,3346.3,1.83476]
[1737048460451,0.60039497,3346.4,3346.3,1.83476]
[1737048461255,0.60039497,3346.4,3346.3,1.237]
[1737048461849,0.60039497,3346.4,3346.2,0.59777]
[1737048461850,0.59778,3346.2,3346.1,1.83378]
[1737048462252,3.80558,3346.2,3346.1,0.59778]
[1737048462452,3.80558,3346.2,3345.6,1.49469]
[1737048462670,3.80558,3346.2,3345.7,0.2899423]
[1737048462671,0.59785,3345.8,3345.7,0.2899423]
[1737048462860,0.59784,3346.0,3345.9,0.59782]
[1737048463065,1.91174,3346.0,3345.9,0.59782]
[1737048463460,1.91174,3346.0,3345.9,0.88738473]
[1737048463660,1.3139,3346.0,3345.9,1.34740502]
[1737048464261,1.3139,3346.0,3345.9,1.81098012]
[1737048464461,1.3139,3346.0,3345.9,1.81096687]
[1737048466264,1.91172,3346.0,3345.9,1.81096687]
[1737048466563,1.91172,3346.0,3345.9,1.21314687]
[1737048466753,1.91172,3346.0,3345.9,3.04759044]
[1737048466959,1.2659,3346.1,3345.9,2.44976044]
[1737048467158,0.00265497,3346.4,3346.3,0.59776]
[1737048467452,3.2078,3347.0,3346.9,0.59765]
[1737048467453,3.8078,3347.0,3346.9,0.59765]
[1737048467654,3.8078,3347.0,3346.9,45.66674129]
[1737048468060,3.8078,3347.0,3346.9,44.43074129]
[1737048468265,3.51758994,3347.3,3346.9,45.52911158]
[1737048468566,3.51758994,3347.3,3347.2,2.87695114]
[1737048468764,3.51758994,3347.3,3347.2,3.6303808]
[1737048468964,3.51758994,3347.3,3347.2,3.0327808]
[1737048469171,3.51758994,3347.3,3347.2,0.75342966]
[1737048469476,2.612,3347.4,3347.2,1.21344995]
[1737048469668,2.612,3347.4,3347.3,0.75342966]
[1737048470072,2.612,3347.4,3347.3,1.21344995]
[1737048470478,3.20957,3347.4,3347.3,0.46002029]
[1737048470687,3.20957,3347.4,3347.3,1.21354981]
[1737048471068,2.612,3347.4,3347.3,1.21356558]
[1737048471572,2.612,3347.4,3347.3,0.74983775]
[1737048472378,2.612,3347.4,3347.3,0.74992948]
[1737048474178,2.612,3347.4,3347.3,1.34750948]
[1737048474477,2.612,3347.4,3347.3,0.74971092]
[1737048474671,2.612,3347.4,3347.3,1.34729092]
[1737048475278,2.612,3347.4,3347.3,1.81095866]
[1737048476469,2.612,3347.4,3347.3,1.34729092]
[1737048476674,2.612,3347.4,3347.3,0.74971092]
[1737048476879,2.612,3347.4,3347.3,1.34729092]
[1737048477078,4.89135114,3347.4,3347.1,0.59761]
[1737048477379,4.89135114,3347.4,3346.6,3.2078]
[1737048477569,4.89135114,3347.4,3346.7,1.69997734]
[1737048477768,4.89135114,3347.4,3345.6,2.98941]
[1737048477769,3.2078,3346.9,3346.1,2.27935114]
[1737048478092,2.27935114,3346.8,3346.2,1.69784571]
[1737048478277,3.50965114,3346.8,3346.3,0.46184571]
[1737048478579,3.2078,3346.4,3346.3,0.59776]
[1737048478777,3.2078,3346.4,3346.3,1.0576389]
[1737048479676,3.51758994,3346.6,3346.3,0.4598789]
[1737048479878,3.51758994,3346.6,3346.5,0.59773]
[1737048480077,3.51758994,3346.6,3346.5,1.05752335]
[1737048480378,5.93678994,3346.8,3346.7,0.59769]
[1737048480571,5.93678994,3346.8,3346.7,1.05748335]
[1737048481068,5.93678994,3346.8,3346.7,0.45979335]
[1737048481468,2.4192,3346.8,3346.7,0.45979335]
[1737048481678,3.01687,3346.8,3346.7,0.45979335]
[1737048481879,5.29622114,3346.8,3346.7,0.45979335]
[1737048484275,10.29622114,3346.8,3346.7,0.45979335]
[1737048484482,7.4192,3346.8,3345.9,2.27935114]
[1737048484677,2.4192,3346.8,3346.2,2.27935114]
[1737048484879,2.4192,3346.8,3346.0,4.4438]
[1737048485084,0.59778,3346.3,3346.2,0.59778]
[1737048485582,2.4192,3346.8,3346.0,4.4438]
[1737048485788,0.59776,3346.3,3346.0,4.4438]
[1737048486084,0.59777,3346.3,3346.2,0.59778]
[1737048486286,2.4192,3346.8,3346.0,4.4438]
[1737048486483,0.59776,3346.4,3346.3,0.59776]
[1737048486683,2.4192,3346.8,3346.3,3.51435114]
[1737048486882,3.2078,3347.0,3346.7,2.27935114]
[1737048486883,0.59766,3346.9,3346.7,2.27935114]
[1737048487083,3.2078,3347.0,3346.4,4.78045114]
[1737048487282,0.59766,3346.9,3346.7,0.59768]
[1737048487584,0.59768,3346.8,3346.6,0.59771]
[1737048487779,3.2078,3347.0,3346.4,4.78045114]
[1737048487980,0.59765,3346.9,3346.6,0.5977]
[1737048488177,3.2078,3347.0,3346.7,40.8]
[1737048488380,0.59767,3346.8,3346.7,40.8]
[1737048488783,3.2078,3347.0,3346.9,0.59765]
[1737048488987,3.2078,3347.0,3346.9,0.88209438]
[1737048489884,3.2078,3347.0,3346.9,0.28444438]
[1737048490088,3.2078,3347.0,3346.9,0.88209438]
[1737048490791,3.2078,3347.0,3346.9,0.28460628]
[1737048490989,3.2078,3347.0,3346.9,0.88225628]
[1737048492390,3.51354888,3347.4,3347.3,0.59758]
[1737048492587,3.51354888,3347.4,3347.3,0.88218628]
[1737048493385,3.2078,3347.6,3347.3,0.88218628]
[1737048493386,3.51354888,3347.6,3347.5,0.59755]
[1737048493584,3.51354888,3347.6,3347.5,0.88215628]
[1737048494893,5.85591481,3348.0,3347.9,0.59747]
[1737048494894,3.51354888,3348.0,3347.9,0.59747]
[1737048495187,3.51354888,3348.0,3347.9,0.88207628]
[1737048495591,2.75668888,3348.0,3347.9,0.88207628]
[1737048495789,1.00860073,3348.2,3348.1,0.59744]
[1737048496097,2.41827505,3348.4,3348.3,0.5974]
[1737048496291,4.68449386,3348.7,3348.3,0.2841909]
[1737048496595,4.68449386,3348.7,3348.6,3.80515]
[1737048496784,4.68449386,3348.7,3348.6,4.0893409]
[1737048496990,4.05866386,3348.7,3348.6,6.36869204]
[1737048497194,2.66761386,3348.7,3348.6,6.36869204]
[1737048497396,1.67908386,3348.7,3348.6,6.36869204]
[1737048497589,1.2946,3349.6,3348.6,5.77134204]
[1737048497792,1.2946,3349.6,3349.5,0.59719]
[1737048497994,1.2946,3349.6,3349.5,0.8813809]
[1737048498599,1.2946,3349.6,3349.5,4.0891809]
[1737048498791,3.2078,3350.2,3350.1,0.59708]
[1737048498986,3.2078,3350.2,3350.1,0.8812709]
[1737048499194,1.2946,3350.4,3350.1,0.2841909]
[1737048499393,1.89165,3350.4,3350.2,1.5191909]
[1737048499596,1.89165,3350.4,3350.3,0.28312735]
[1737048499891,1.89163,3350.4,3350.3,0.28312735]
[1737048500298,1.2946,3350.4,3349.7,3.2078]
[1737048500490,0.59709,3350.1,3349.9,0.59711]
[1737048500694,0.59708,3350.1,3350.0,0.28271143]
[1737048501096,3.2078,3350.2,3349.8,1.235]
[1737048501293,3.2078,3350.2,3349.3,3.2078]
[1737048501294,5.48715114,3350.2,3349.3,3.2078]
[1737048501496,0.5971,3350.1,3349.7,0.59715]
[1737048501692,1.2449,3350.0,3349.8,0.28238022]
[1737048501896,1.2449,3350.0,3349.7,1.83114]
[1737048502095,1.2449,3350.0,3349.7,1.234]
[1737048502301,0.59714,3349.8,3349.7,1.234]
[1737048503002,0.59715,3349.7,3349.6,1.234]
[1737048503395,3.57685114,3349.9,3348.9,3.2078]
[1737048503598,5.48715114,3349.3,3348.5,3.2078]
[1737048503800,5.48715114,3349.3,3347.5,9.55682035]
[1737048503801,0.59732,3348.8,3348.6,2.11351466]
[1737048504002,0.59731,3348.9,3348.7,1.234]
[1737048504202,1.2051,3348.8,3348.7,1.234]
[1737048504396,1.80241,3348.8,3348.7,1.234]
[1737048506507,0.59736,3348.6,3348.3,0.5974]
[1737048506702,0.59736,3348.6,3348.4,1.83138]
[1737048506904,0.59737,3348.5,3348.4,1.234]
[1737048507210,1.2051,3348.8,3348.4,1.234]
[1737048507506,0.59735,3348.6,3348.4,1.83138]
[1737048507696,1.2051,3348.8,3348.4,1.83138]
[1737048508109,0.59734,3348.7,3348.4,1.83138]
[1737048508906,0.59735,3348.6,3348.5,0.59736]
[1737048509407,0.59735,3348.6,3348.5,0.87955912]
[1737048509606,0.59735,3348.6,3348.5,0.28219912]
[1737048509905,0.59735,3348.6,3348.5,0.87956912]
[1737048510101,0.59733,3348.7,3348.5,0.87956912]
[1737048510302,0.59733,3348.7,3348.5,0.59737]
[1737048510808,1.2051,3348.8,3348.4,1.83138]
[1737048511006,1.2051,3348.8,3348.2,41.39742]
[1737048511203,0.59739,3348.4,3348.3,0.28232021]
[1737048511400,3.77269114,3348.7,3348.2,1.234]
[1737048511401,1.49338,3348.6,3348.2,1.234]
[1737048511607,1.49343,3348.5,3348.1,1.234]
[1737048511806,0.59742,3348.2,3348.1,1.234]
[1737048512002,2.521,3348.4,3348.1,1.234]
[1737048512307,0.59742,3348.2,3347.9,0.59747]
[1737048512604,0.59746,3348.1,3348.0,0.28260659]
[1737048512810,0.59746,3348.1,3348.0,0.88006659]
[1737048513011,0.59746,3348.1,3348.0,1.51660659]
[1737048513406,0.59746,3348.1,3348.0,1.51678756]
[1737048514299,3.80526,3348.1,3348.0,1.51678756]
[1737048514505,3.80526,3348.1,3347.1,3.2078]
[1737048514506,0.59759,3347.3,3347.2,0.59759]
[1737048514701,3.2078,3347.7,3347.2,1.51697624]
[1737048514906,0.59757,3347.4,3347.3,0.28297624]
[1737048515208,0.59757,3347.4,3347.3,41.68055624]
[1737048515413,0.59757,3347.4,3347.3,41.08297624]
[1737048515911,0.59757,3347.4,3347.3,41.68055624]
[1737048516213,0.59757,3347.4,3347.3,41.08297624]
[1737048516813,0.59757,3347.4,3347.3,0.28297624]
[1737048517115,2.27935114,3347.5,3346.9,1.234]
[1737048517321,0.59764,3347.0,3346.9,1.234]
[1737048518317,3.2078,3347.3,3346.9,3.51335114]
[1737048518519,3.80539,3347.3,3347.2,0.5976]
[1737048519518,3.80539,3347.3,3347.2,41.3976]
[1737048519719,3.2078,3347.3,3347.2,41.3976]
[1737048519918,3.80538,3347.3,3347.2,41.3976]
[1737048520213,3.2078,3347.3,3347.2,41.3976]
[1737048520814,0.59756,3347.5,3347.2,40.8]
[1737048521016,0.59757,3347.4,3347.3,0.59758]
[1737048521215,0.59757,3347.4,3347.2,41.39759]
[1737048521416,0.59758,3347.3,3347.2,40.8]
[1737048522622,1.2935,3347.6,3346.9,1.234]
[1737048522820,0.59764,3347.0,3346.9,1.234]
[1737048523420,1.6005,3347.2,3346.8,0.59767]
[1737048523623,0.59765,3346.9,3346.8,0.59767]
[1737048523821,0.59765,3346.9,3346.8,1.83167]
[1737048524223,0.59765,3346.9,3346.8,4.11102114]
[1737048524622,0.59765,3346.9,3346.8,3.51335114]
[1737048524927,0.59767,3346.8,3346.7,40.8]
[1737048525128,2.20377,3346.8,3346.7,42.63169]
[1737048525432,2.20377,3346.8,3346.7,42.034]
[1737048525637,2.20377,3346.8,3346.7,42.63169]
[1737048526134,0.59766,3346.9,3346.7,42.63168]
[1737048526530,0.59767,3346.8,3346.7,42.63168]
[1737048527138,1.6061,3347.1,3346.7,42.034]
[1737048527337,0.59767,3346.8,3346.7,44.91103114]
[1737048528332,0.59767,3346.8,3346.7,44.31335114]
[1737048529042,0.59767,3346.8,3346.7,44.59512312]
[1737048529234,0.59767,3346.8,3346.7,42.31577198]
[1737048529930,0.59767,3346.8,3346.7,0.28177198]
[1737048530130,0.59767,3346.8,3346.7,1.51577198]
[1737048530532,0.59767,3346.8,3346.7,42.31577198]
[1737048530734,0.59767,3346.8,3346.7,42.91346198]
[1737048530934,0.59767,3346.8,3346.7,44.59512312]
[1737048531339,0.59767,3346.8,3346.7,42.31577198]
[1737048531837,3.80547,3346.8,3346.7,1.51577198]
[1737048532045,3.80547,3346.8,3346.7,0.28177198]
[1737048532538,3.2078,3346.8,3346.7,0.28249508]
[1737048532740,3.80547,3346.8,3346.7,0.28249508]
[1737048538441,3.2078,3346.8,3345.8,2.27935114]
[1737048538640,0.59781,3346.0,3345.8,2.27935114]
[1737048538843,0.59781,3346.0,3345.9,4.4418]
[1737048540547,0.59789,3345.6,3345.5,4.5265]
[1737048540751,0.59785,3345.8,3345.5,1.235]
[1737048541055,0.59789,3345.6,3345.5,1.235]
[1737048542253,0.59789,3345.6,3345.5,1.8329]
[1737048542848,0.59789,3345.6,3345.5,1.235]
[1737048543048,0.59789,3345.6,3345.5,1.8329]
[1737048544657,0.59789,3345.6,3345.5,42.6329]
[1737048547055,1.6382,3345.9,3345.5,42.6329]
[1737048547056,1.6382,3345.9,3345.5,42.035]
[1737048547251,3.2078,3346.9,3345.7,3.2078]
[1737048547455,1.6145,3346.8,3346.4,2.27935114]
[1737048547751,3.58646,3346.4,3345.9,1.234]
[1737048547952,0.59781,3346.0,3345.9,1.234]
[1737048548851,3.2078,3346.1,3345.3,3.2078]
[1737048549050,3.2078,3346.1,3345.3,3.80573]
[1737048549051,0.59792,3345.4,3345.3,3.80573]
[1737048549353,0.59788,3345.7,3345.6,0.59787]
[1737048549556,0.59785,3345.9,3345.8,0.59784]
[1737048549752,0.59787,3345.8,3345.7,0.59786]
[1737048549951,0.59787,3345.7,3345.6,2.87723114]
[1737048550457,0.59786,3345.8,3345.7,0.59785]
[1737048550654,0.59786,3345.8,3345.7,0.87944861]
[1737048552257,3.2078,3346.1,3345.7,0.28159861]
[1737048552458,2.18087,3346.3,3346.1,0.59778]
[1737048552646,1.5831,3346.3,3346.2,2.11337861]
[1737048552854,2.18086,3346.3,3346.2,1.51559861]
[1737048553252,2.18086,3346.3,3346.2,2.11337861]
[1737048553453,1.5831,3346.3,3346.2,2.11337861]
[1737048554059,1.5831,3346.3,3346.2,1.51559861]
[1737048554362,1.5831,3346.3,3346.2,2.11337861]
[1737048554765,2.18086,3346.3,3346.2,1.51559861]
[1737048555058,2.18086,3346.3,3346.2,2.11337861]
[1737048555462,2.18086,3346.3,3346.2,1.51559861]
[1737048555957,1.5831,3346.3,3346.2,2.11337861]
[1737048556555,1.5831,3346.3,3346.2,1.83178]
[1737048557155,0.59773,3346.5,3346.2,1.234]
[1737048557355,0.59773,3346.5,3346.4,0.59774]
[1737048557555,0.59773,3346.5,3346.2,1.234]
[1737048557556,0.59773,3346.5,3346.3,0.59774]
[1737048557760,0.59773,3346.5,3346.4,0.59774]
[1737048558161,3.81332,3346.6,3346.4,0.87969902]
[1737048558460,3.81332,3346.6,3346.2,1.234]
[1737048558461,3.81332,3346.6,3346.5,0.28196902]
[1737048560159,1.6165,3346.6,3346.5,3.15924519]
[1737048560456,1.5159,3346.9,3346.8,0.59767]
[1737048560663,1.5159,3346.9,3346.8,0.87984405]
[1737048561258,2.11355,3346.9,3346.8,0.87984405]
[1737048561456,1.5693,3347.1,3347.0,0.59764]
[1737048561658,2.16692,3347.1,3347.0,2.11381405]
[1737048561858,3.2078,3347.2,3347.1,0.59762]
[1737048562058,3.2078,3347.2,3347.1,0.8796731]
[1737048562559,3.2078,3347.2,3347.1,0.87957441]
[1737048563161,3.2078,3347.2,3347.1,1.35090981]
[1737048563859,3.2078,3347.2,3347.1,1.36355108]
[1737048564967,3.2078,3347.2,3347.1,2.57793251]
[1737048566571,3.8054,3347.2,3347.1,2.57793251]
[1737048566759,3.8054,3347.2,3347.1,1.98031251]
[1737048568764,3.8054,3347.2,3347.1,2.57793251]
[1737048569265,3.8054,3347.2,3347.1,1.98031251]
[1737048569466,3.8054,3347.2,3347.1,2.57793251]
[1737048569667,3.8054,3347.2,3347.1,2.57651732]
[1737048570070,3.8054,3347.2,3347.1,1.97889732]
[1737048571473,3.8054,3347.2,3347.1,1.97873874]
[1737048571873,5.48715114,3347.2,3346.5,3.80551]
[1737048572174,0.59771,3346.6,3346.5,5.03951]
[1737048572574,0.59771,3346.6,3346.5,1.234]
[1737048572771,0.59772,3346.5,3346.4,1.83173]
[1737048572973,2.12222,3346.5,3346.4,1.83173]
[1737048573275,2.12222,3346.5,3346.3,4.65217947]
[1737048573276,1.5245,3346.5,3346.3,5.24992947]
[1737048573482,2.19164,3346.4,3346.3,6.48392947]
[1737048573670,2.19164,3346.4,3346.3,1.83175]
[1737048573978,2.19164,3346.4,3346.3,1.234]
[1737048575176,3.71584,3346.4,3346.3,1.234]
[1737048575574,3.71584,3346.4,3346.2,0.59777]
[1737048575781,0.59776,3346.3,3346.2,1.233]
[1737048576683,0.59776,3346.3,3346.2,1.83077]
[1737048578282,0.59781,3346.1,3345.9,4.65217947]
[1737048578473,3.1181,3346.4,3346.0,1.233]
[1737048578878,0.59778,3346.3,3346.2,0.59776]
[1737048581082,3.1181,3346.4,3346.3,0.59776]
[1737048581885,3.1181,3346.4,3346.3,1.06344899]
[1737048582883,3.71584,3346.4,3346.3,1.06350962]
[1737048583090,3.1181,3346.4,3346.3,1.06350962]
[1737048583384,3.71584,3346.4,3346.3,1.06350962]
[1737048583781,3.71584,3346.4,3346.3,1.35460975]
[1737048583975,3.71584,3346.4,3346.3,42.62178615]
[1737048585982,3.1181,3346.4,3346.3,1.82178615]
[1737048586180,0.59771,3346.7,3346.6,0.59769]
[1737048586389,0.59771,3346.7,3346.6,1.35453975]
[1737048586788,0.59771,3346.7,3346.6,1.82171288]
[1737048587891,4.8259,3346.8,3346.6,1.22402288]
[1737048588086,5.42359,3346.8,3346.7,1.35453975]
[1737048588290,5.42359,3346.8,3346.7,1.82171288]
[1737048588483,5.42359,3346.8,3346.7,1.82178747]
[1737048591289,5.42359,3346.8,3346.7,1.22409747]
[1737048592183,3.50835725,3347.1,3346.7,1.22409747]
[1737048592381,3.50835725,3347.1,3347.0,0.59764]
[1737048592692,3.50835725,3347.1,3347.0,1.35456434]
[1737048592890,3.50835725,3347.1,3347.0,1.82173747]
[1737048593388,2.76145725,3347.1,3347.0,1.82173747]
[1737048593591,5.48715114,3347.5,3347.0,5.87627694]
[1737048593888,2.1262,3347.2,3347.1,0.75692434]
[1737048594093,2.1262,3347.2,3347.1,1.22409747]
[1737048594287,1.5286,3347.2,3347.1,1.82171747]
[1737048595792,3.1775,3347.2,3347.1,1.82171747]
[1737048596197,3.1775,3347.2,3347.1,1.81970332]
[1737048597097,3.7751,3347.2,3347.1,1.22208332]
[1737048597593,3.7751,3347.2,3347.1,1.81970332]
[1737048597594,3.1775,3347.2,3347.1,1.81970332]
[1737048597793,3.7751,3347.2,3347.1,1.81970332]
[1737048597996,3.7751,3347.2,3347.1,1.22178175]
[1737048597997,3.1775,3347.2,3347.1,1.22178175]
[1737048598193,3.1775,3347.2,3347.1,1.81940175]
[1737048598394,3.7751,3347.2,3347.1,1.22178175]
[1737048599894,0.59767,3346.8,3346.7,3.2078]
[1737048600096,3.1775,3347.2,3347.0,0.59764]
[1737048600097,0.59762,3347.1,3347.0,0.59764]
[1737048600295,3.1775,3347.2,3347.1,0.59762]
[1737048600895,3.1775,3347.2,3346.7,4.70203]
[1737048600896,3.1775,3347.2,3346.8,1.5075]
[1737048601097,3.1775,3347.2,3347.1,0.59762]
[1737048601291,4.66359656,3347.5,3347.4,0.59756]
[1737048601589,6.42065476,3347.8,3347.7,0.59751]
[1737048601590,4.66359656,3347.8,3347.7,0.59751]
[1737048602295,5.26108656,3347.8,3347.7,0.59751]
[1737048602493,4.66359656,3347.8,3347.7,0.59751]
[1737048602887,4.66359656,3347.8,3347.4,1.233]
[1737048602888,0.59748,3347.9,3347.8,0.59749]
[1737048603092,2.20088,3347.9,3347.5,40.8]
[1737048603301,1.6034,3347.9,3347.5,40.8]
[1737048603598,0.5975,3347.8,3347.6,0.59751]
[1737048603799,0.59753,3347.6,3347.5,40.8]
[1737048603992,3.2078,3347.6,3347.1,4.65217947]
[1737048604199,3.115,3347.5,3347.4,2.87691114]
[1737048604396,2.20088,3347.9,3347.8,0.59749]
[1737048604596,4.7184,3347.9,3347.4,1.233]
[1737048605007,0.59755,3347.5,3347.4,1.83056]
[1737048605495,0.59752,3347.7,3347.5,0.59753]
[1737048605700,4.7184,3347.9,3347.6,40.8]
[1737048605897,4.7184,3347.9,3347.8,0.59749]
[1737048606100,4.66359656,3348.1,3347.6,40.8]
[1737048606290,4.66359656,3348.1,3348.0,0.59746]
[1737048606798,4.66359656,3348.1,3348.0,2.13136]
[1737048607098,4.03418656,3348.1,3348.0,2.13136]
[1737048607289,5.82315476,3348.3,3348.0,2.13136]
[1737048607290,4.33930476,3348.3,3348.0,7.8659]
[1737048607495,7.02709777,3349.0,3348.9,0.5973]
[1737048607690,3.1285,3349.3,3348.9,1.232]
[1737048607900,2.27935114,3349.0,3348.6,40.8]
[1737048608104,2.27935114,3348.7,3348.3,1.232]
[1737048608400,3.1536,3348.6,3348.3,1.82939]
[1737048608601,0.59739,3348.4,3348.3,1.232]
[1737048609006,0.59739,3348.4,3348.3,1.8294]
[1737048609303,0.59737,3348.5,3348.4,0.59738]
[1737048610004,3.1536,3348.6,3348.4,0.45721544]
[1737048610202,3.1536,3348.6,3348.5,1.05458544]
[1737048610402,1.5725,3348.6,3348.5,1.05458544]
[1737048611893,0.59732,3348.8,3348.5,0.74285345]
[1737048612095,3.07,3348.9,3348.7,0.59732]
[1737048612402,3.6673,3348.9,3348.8,0.28545876]
[1737048613007,3.6673,3348.9,3348.8,0.74822248]
[1737048613802,3.6673,3348.9,3348.8,0.46276372]
[1737048614001,3.6673,3348.9,3348.8,0.74831108]
[1737048614300,3.6673,3348.9,3348.8,0.74834967]
[1737048614502,3.07,3348.9,3348.8,1.34565967]
[1737048614907,1.5222,3348.9,3348.8,1.80247075]
[1737048615107,2.1195,3348.9,3348.8,0.74834967]
[1737048615305,1.5222,3348.9,3348.8,1.34565967]
[1737048615608,1.5222,3348.9,3348.8,1.80258867]
[1737048616509,3.80508,3349.0,3348.8,1.20527867]
[1737048616708,3.80508,3349.0,3348.9,1.33981495]
[1737048617005,3.80508,3349.0,3348.9,1.20527867]
[1737048617209,3.80508,3349.0,3348.9,0.74834967]
[1737048617399,3.2078,3349.0,3348.3,1.232]
[1737048617604,0.59738,3348.5,3348.4,1.33981719]
[1737048617804,2.27935114,3348.8,3348.4,0.74243719]
[1737048618003,0.59736,3348.6,3348.5,0.74243719]
[1737048618213,0.59736,3348.6,3348.5,0.7424838]
[1737048618614,0.59736,3348.6,3348.5,0.28556303]
[1737048619317,0.59736,3348.6,3348.5,0.88293303]
[1737048619620,3.1545,3348.9,3348.5,0.74258608]
[1737048619812,0.59735,3348.6,3348.5,0.59736]
[1737048620016,0.59735,3348.6,3348.5,0.88311104]
[1737048620314,0.59735,3348.6,3348.5,1.34037005]
[1737048620819,0.59735,3348.6,3348.5,0.74301005]
[1737048621116,0.59735,3348.6,3348.5,0.28575104]
[1737048621419,0.59735,3348.6,3348.5,0.74309159]
[1737048621813,0.5974,3348.4,3348.3,0.5974]
[1737048622013,0.5974,3348.4,3348.3,1.34077828]
[1737048622313,0.5974,3348.4,3348.3,0.74337828]
[1737048623522,0.5974,3348.4,3348.3,1.34077828]
[1737048623822,0.5974,3348.4,3348.3,0.74337828]
[1737048625111,0.5974,3348.4,3348.3,1.34077828]
[1737048625417,0.59739,3348.4,3348.3,1.34075828]
[1737048625621,0.59739,3348.4,3348.3,0.74337828]
[1737048626726,2.87674114,3348.4,3348.3,0.74337828]
[1737048626921,0.59753,3347.7,3347.6,0.59752]
[1737048627111,0.59753,3347.7,3347.6,0.28630702]
[1737048627512,3.66563,3347.7,3347.6,0.28630702]
[1737048627727,0.59765,3346.9,3346.8,40.8]
[1737048628121,3.80545,3346.9,3346.8,40.8]
[1737048628630,3.2078,3346.9,3346.6,1.232]
[1737048628819,0.59769,3346.7,3346.6,1.232]
[1737048629222,0.59769,3346.7,3346.6,42.032]
[1737048629415,3.0681,3346.8,3346.6,42.032]
[1737048629627,0.59769,3346.7,3346.6,42.6297]
[1737048629829,3.66578,3346.8,3346.7,0.59769]
[1737048630028,3.0681,3346.8,3346.6,42.49216854]
[1737048630325,3.2078,3346.9,3346.7,0.46016854]
[1737048630517,0.5976,3347.2,3347.1,0.5976]
[1737048630827,3.1947,3347.3,3346.8,3.2078]
[1737048631028,0.59765,3347.0,3346.9,0.59764]
[1737048631223,1.4985,3347.1,3346.8,3.2078]
[1737048631423,0.59761,3347.2,3347.0,0.59764]
[1737048631634,4.6932,3347.3,3346.9,2.73913692]
[1737048631828,5.29079,3347.3,3347.2,0.5976]
[1737048632024,5.29079,3347.3,3347.2,1.05738578]
[1737048632631,3.2078,3347.8,3347.2,5.94693692]
[1737048632826,4.7063,3347.8,3347.7,0.59751]
[1737048633029,12.82284783,3348.6,3347.5,3.51135114]
[1737048633231,1.6127,3348.2,3348.1,0.59744]
[1737048633532,0.5974,3348.4,3348.3,0.59739]
[1737048634025,3.1521,3348.5,3348.2,0.59741]
[1737048634026,0.59742,3348.3,3348.2,0.59741]